bitfinex/quotes_BTCUSD_20251113
["timestamp","ask_amount","ask_price","bid_price","bid_amount"]
[1763030511977,0.51150978,102970.0,102960.0,0.07015]
[1763030512397,0.51150978,102970.0,102960.0,0.09015]
[1763030513155,0.51150978,102970.0,102960.0,0.28440019]
[1763030513334,0.51150978,102970.0,102960.0,0.30819019]
[1763030513497,0.49330047,102970.0,102960.0,0.30819019]
[1763030515215,0.51151224,102970.0,102960.0,0.30819019]
[1763030516760,0.51151224,102970.0,102960.0,0.28819019]
[1763030517755,0.51151224,102970.0,102960.0,0.30819019]
[1763030520327,0.51151224,102970.0,102960.0,0.28819019]
[1763030520470,0.51151224,102970.0,102960.0,0.30819019]
[1763030523425,0.51151224,102970.0,102960.0,0.11394]
[1763030524104,0.51151224,102970.0,102960.0,0.09394]
[1763030524284,0.51151224,102970.0,102960.0,0.11394]
[1763030524429,0.51151224,102970.0,102960.0,0.09394]
[1763030524851,0.51151224,102970.0,102960.0,0.30819019]
[1763030525052,0.51151703,102970.0,102960.0,0.30819019]
[1763030525925,0.01835609,102970.0,102960.0,0.30819019]
[1763030526128,0.29906915,102970.0,102960.0,0.30819019]
[1763030526705,0.00013953,102970.0,102960.0,0.30819019]
[1763030526910,0.00013953,102970.0,102960.0,0.60711981]
[1763030528264,0.00013953,102970.0,102960.0,0.60911981]
[1763030529268,0.00013953,102970.0,102960.0,0.61111981]
[1763030530040,0.00013953,102970.0,102960.0,0.31219019]
[1763030530260,0.00013953,102970.0,102960.0,0.61111981]
[1763030531272,0.00013953,102970.0,102960.0,0.31219019]
[1763030531436,0.00013953,102970.0,102960.0,0.61111981]
[1763030532457,0.00013953,102970.0,102960.0,0.31219019]
[1763030532803,0.00013953,102970.0,102960.0,0.61111981]
[1763030533195,0.00013953,102970.0,102960.0,0.31219019]
[1763030533554,0.00013953,102970.0,102960.0,0.29219019]
[1763030533756,0.00013953,102970.0,102960.0,0.31219019]
[1763030534011,0.49330047,102970.0,102960.0,0.05578]
[1763030534221,0.49330047,102970.0,102960.0,0.03199]
[1763030534453,0.49330047,102970.0,102960.0,0.05815]
[1763030535102,0.29906915,102970.0,102960.0,0.26888019]
[1763030535287,0.49330047,102970.0,102960.0,0.11705]
[1763030535480,0.49330047,102970.0,102960.0,0.11505]
[1763030535643,0.49330047,102970.0,102960.0,0.11605]
[1763030535844,0.49330047,102970.0,102960.0,0.11705]
[1763030536240,0.49330047,102970.0,102960.0,0.29130019]
[1763030536681,0.49330047,102970.0,102960.0,0.31130019]
[1763030536988,0.64288459,102970.0,102960.0,0.31130019]
[1763030537369,0.88538459,102970.0,102960.0,0.31130019]
[1763030537950,0.69115327,102970.0,102960.0,0.31130019]
[1763030538338,0.88538459,102970.0,102960.0,0.29130019]
[1763030538640,0.69115327,102970.0,102960.0,0.31130019]
[1763030538775,0.88538459,102970.0,102960.0,0.31130019]
[1763030539469,0.69115327,102970.0,102960.0,0.31130019]
[1763030542185,0.88538459,102970.0,102960.0,0.31130019]
[1763030542391,0.88538459,102970.0,102960.0,0.07263]
[1763030542970,0.88538459,102970.0,102960.0,0.09705]
[1763030543146,1.10964146,102970.0,102960.0,0.09263]
[1763030543345,1.10964146,102970.0,102960.0,0.07263]
[1763030543740,1.10964146,102970.0,102960.0,0.09263]
[1763030544377,1.10964146,102970.0,102960.0,0.11705]
[1763030544916,0.88538459,102970.0,102960.0,0.11705]
[1763030545613,0.88538459,102970.0,102960.0,0.31130019]
[1763030546010,0.69115327,102970.0,102960.0,0.29130019]
[1763030546157,0.88538459,102970.0,102960.0,0.31130019]
[1763030546354,0.69115327,102970.0,102960.0,0.31130019]
[1763030546559,0.88538459,102970.0,102960.0,0.31130019]
[1763030548293,0.69115327,102970.0,102960.0,0.31130019]
[1763030548502,0.88538459,102970.0,102960.0,0.31130019]
[1763030549175,0.69115327,102970.0,102960.0,0.31130019]
[1763030549626,0.88538459,102970.0,102960.0,0.31130019]
[1763030549815,0.69115327,102970.0,102960.0,0.31130019]
[1763030550876,0.88538459,102970.0,102960.0,0.05493]
[1763030551133,0.88538459,102970.0,102960.0,0.29130019]
[1763030551349,0.88538459,102970.0,102960.0,0.31130019]
[1763030557290,0.88538459,102970.0,102960.0,0.11705]
[1763030557850,0.88538459,102970.0,102960.0,0.29130019]
[1763030558054,0.88538459,102970.0,102960.0,0.31130019]
[1763030559718,0.69115327,102970.0,102960.0,0.29130019]
[1763030559895,0.69115327,102970.0,102960.0,0.31130019]
[1763030560117,0.88538459,102970.0,102960.0,0.31130019]
[1763030565254,0.43687085,102970.0,102960.0,0.31130019]
[1763030565476,0.24263953,102970.0,102960.0,0.31130019]
[1763030565737,0.24263953,102970.0,102960.0,0.53555706]
[1763030568363,0.24263953,102970.0,102960.0,0.51555706]
[1763030568510,0.24263953,102970.0,102960.0,0.75981393]
[1763030571764,0.24263953,102970.0,102960.0,0.80323267]
[1763030572676,0.00013953,102970.0,102960.0,0.80323267]
[1763030573772,0.00013953,102970.0,102960.0,0.76111267]
[1763030573973,0.00013953,102970.0,102960.0,0.80323267]
[1763030574386,0.00013953,102970.0,102960.0,1.02748954]
[1763030574595,0.00013953,102970.0,102960.0,1.35048954]
[1763030574971,0.00013953,102970.0,102960.0,1.34948954]
[1763030575112,0.00013953,102970.0,102960.0,1.34848954]
[1763030575341,0.00013953,102970.0,102960.0,1.35148954]
[1763030575545,0.00013953,102970.0,102960.0,1.35448954]
[1763030576337,0.00013953,102970.0,102960.0,1.33448954]
[1763030576524,0.00013953,102970.0,102960.0,2.02726015]
[1763030576710,0.00013953,102970.0,102960.0,1.35448954]
[1763030578813,0.00013953,102970.0,102960.0,1.36430352]
[1763030582585,0.24388571,103000.0,102990.0,0.19419361]
[1763030582792,0.24435183,103000.0,102990.0,0.50878048]
[1763030582993,0.24435183,103000.0,102990.0,0.30798361]
[1763030583355,0.4686087,103000.0,102990.0,0.28798361]
[1763030583555,0.4686087,103000.0,102990.0,0.30798361]
[1763030583756,0.88704032,103000.0,102990.0,0.26586361]
[1763030583954,0.88704032,103000.0,102990.0,0.11379]
[1763030584223,1.11129719,103000.0,102990.0,0.04821]
[1763030584356,1.11129719,103000.0,102990.0,0.05456]
[1763030584559,0.43852658,103000.0,102990.0,0.07456]
[1763030584872,1.15950158,103000.0,102990.0,0.07456]
[1763030585072,1.15950158,103000.0,102990.0,0.05456]
[1763030585706,1.15950158,103000.0,102990.0,0.07456]
[1763030586723,1.15950158,103000.0,102990.0,0.05456]
[1763030587132,1.15950158,103000.0,102990.0,0.07456]
[1763030587513,1.15950158,103000.0,102990.0,0.05456]
[1763030587731,0.93524471,103000.0,102990.0,0.05456]
[1763030588315,0.93524471,103000.0,102990.0,0.07456]
[1763030588722,1.15950158,103000.0,102990.0,0.07456]
[1763030589154,1.15950158,103000.0,102990.0,0.05456]
[1763030589388,1.15950158,103000.0,102990.0,0.07456]
[1763030589596,0.93524471,103000.0,102990.0,0.07456]
[1763030589936,1.15950158,103000.0,102990.0,0.05456]
[1763030590862,1.15950158,103000.0,102990.0,0.07456]
[1763030592229,1.15950158,103000.0,102990.0,0.05456]
[1763030592658,1.15950158,103000.0,102990.0,0.07456]
[1763030592659,0.93524471,103000.0,102990.0,0.07456]
[1763030592860,0.93524471,103000.0,102990.0,0.11395]
[1763030593199,0.93524471,103000.0,102990.0,0.30814361]
[1763030593822,0.74106996,103000.0,102990.0,0.30814361]
[1763030594041,0.93524471,103000.0,102990.0,0.30814361]
[1763030594469,0.29255622,103000.0,102990.0,0.30814361]
[1763030594623,0.93524471,103000.0,102990.0,0.26602361]
[1763030594798,0.93524471,103000.0,102990.0,0.30814361]
[1763030595009,0.24435183,103000.0,102990.0,0.30814361]
[1763030595209,0.24435183,103000.0,102990.0,0.28814361]
[1763030595412,0.24435183,103000.0,102990.0,0.30814361]
[1763030596512,0.24435183,103000.0,102990.0,0.30914361]
[1763030596694,0.24435183,103000.0,102990.0,0.31014361]
[1763030596895,0.24435183,103000.0,102990.0,0.30814361]
[1763030597307,0.24435183,103000.0,102990.0,0.31114361]
[1763030597851,0.24435183,103000.0,102990.0,0.75965735]
[1763030598467,0.24435183,103000.0,102990.0,0.31114361]
[1763030598669,0.24435183,103000.0,102990.0,0.75965735]
[1763030598883,0.24435183,103000.0,102990.0,0.65323608]
[1763030599290,0.24435183,103000.0,102990.0,0.35456235]
[1763030599545,0.24435183,103000.0,102990.0,0.65323608]
[1763030600724,0.24435183,103000.0,102990.0,0.40276674]
[1763030600930,0.24435183,103000.0,102990.0,0.70144047]
[1763030602035,0.00185183,103000.0,102990.0,0.70144047]
[1763030605363,0.00185183,103000.0,102990.0,0.40276674]
[1763030605620,0.00185183,103000.0,102990.0,0.70144047]
[1763030606162,0.00185183,103000.0,102990.0,0.68144047]
[1763030606508,0.00185183,103000.0,102990.0,0.38276674]
[1763030606711,0.00185183,103000.0,102990.0,0.40276674]
[1763030607508,0.00185183,103000.0,102990.0,0.70144047]
[1763030608040,0.00185183,103000.0,102990.0,0.40276674]
[1763030609622,0.00185183,103000.0,102990.0,0.31114361]
[1763030611737,0.00185183,103000.0,102990.0,0.29114361]
[1763030611972,0.00185183,103000.0,102990.0,0.31114361]
[1763030615735,0.19602658,103000.0,102990.0,0.31114361]
[1763030615967,0.19602658,103000.0,102990.0,0.03177]
[1763030615968,0.79337404,103000.0,102990.0,0.03177]
[1763030616196,1.48441825,103000.0,102990.0,0.003]
[1763030616410,1.48441825,103000.0,102990.0,0.04508]
[1763030616411,1.38801877,103000.0,102990.0,0.04508]
[1763030616830,1.38801877,103000.0,102990.0,0.06508]
[1763030617247,1.38801877,103000.0,102990.0,0.04408]
[1763030617685,1.38801877,103000.0,102990.0,0.06308]
[1763030617890,1.38801877,103000.0,102990.0,0.06408]
[1763030618101,1.38801877,103000.0,102990.0,0.04408]
[1763030618852,1.38801877,103000.0,102990.0,0.06408]
[1763030619449,1.38801877,103000.0,102990.0,0.04408]
[1763030621503,1.38801877,103000.0,102990.0,0.04412]
[1763030624171,1.38801877,103000.0,102990.0,0.06412]
[1763030624376,1.38801877,103000.0,102990.0,0.04412]
[1763030624585,1.38801877,103000.0,102990.0,0.06412]
[1763030626789,1.38801877,103000.0,102990.0,0.04412]
[1763030628597,1.44295341,103000.0,102990.0,0.04412]
[1763030628805,1.38801877,103000.0,102990.0,0.04412]
[1763030630170,1.38801877,103000.0,102990.0,0.06412]
[1763030630804,1.38801877,103000.0,102990.0,0.04412]
[1763030631065,1.38801877,103000.0,102990.0,0.23831361]
[1763030631713,1.38801877,103000.0,102990.0,0.25831361]
[1763030636542,1.38801877,103000.0,102990.0,0.24969361]
[1763030636718,1.38801877,103000.0,102990.0,0.26969361]
[1763030637787,1.38801877,103000.0,102990.0,0.23831361]
[1763030637970,1.38801877,103000.0,102990.0,0.04412]
[1763030638169,1.38801877,103000.0,102990.0,0.06412]
[1763030638396,1.38801877,103000.0,102990.0,0.04412]
[1763030639327,1.47430531,103000.0,102990.0,0.04412]
[1763030639783,1.38801877,103000.0,102990.0,0.04412]
[1763030641328,1.38801877,103000.0,102990.0,0.06412]
[1763030641535,1.40618841,103000.0,102990.0,0.06412]
[1763030642507,1.40618841,103000.0,102990.0,0.04412]
[1763030643064,1.16368841,103000.0,102990.0,0.04412]
[1763030643272,1.16368841,103000.0,102990.0,0.06412]
[1763030643479,1.25248052,103000.0,102990.0,0.04412]
[1763030643722,1.16368841,103000.0,102990.0,0.04412]
[1763030643907,1.16368841,103000.0,102990.0,0.25831361]
[1763030644102,1.16368841,103000.0,102990.0,0.27072361]
[1763030644809,0.84684504,103000.0,102990.0,0.29061361]
[1763030645046,0.32967029,103000.0,102990.0,0.31061361]
[1763030645381,0.52384504,103000.0,102990.0,0.31061361]
[1763030645838,0.54204845,103000.0,102990.0,0.0729]
[1763030646052,0.82251877,103000.0,102990.0,0.0729]
[1763030646268,0.52384504,103000.0,102990.0,0.30979361]
[1763030646469,0.32967029,103000.0,102990.0,0.30979361]
[1763030646705,0.03099656,103000.0,102990.0,0.28979361]
[1763030646880,0.00185183,103000.0,102990.0,0.30979361]
[1763030647596,0.00185183,103000.0,102990.0,0.28979361]
[1763030647895,0.00185183,103000.0,102990.0,0.30979361]
[1763030648099,0.19602658,103000.0,102990.0,0.30979361]
[1763030649539,0.49470031,103000.0,102990.0,0.1156]
[1763030650185,0.49470031,103000.0,102990.0,0.0956]
[1763030650310,0.79337404,103000.0,102990.0,0.05653]
[1763030650716,0.79337404,103000.0,102990.0,0.03441]
[1763030650955,0.79337404,103000.0,102990.0,0.04412]
[1763030651582,0.82252016,103000.0,102990.0,0.04412]
[1763030652757,1.24191964,103000.0,102990.0,0.002]
[1763030652958,1.26010695,103000.0,102990.0,0.04408]
[1763030654090,1.26010695,103000.0,102990.0,0.04208]
[1763030654596,1.16370747,103000.0,102990.0,0.04208]
[1763030655018,1.16370747,103000.0,102990.0,0.06208]
[1763030656381,1.16370747,103000.0,102990.0,0.04208]
[1763030656771,1.16370747,103000.0,102990.0,0.06208]
[1763030657353,0.19419361,102990.0,102980.0,0.22665212]
[1763030657566,0.54107173,102990.0,102980.0,0.26873212]
[1763030657977,0.57021943,102990.0,102980.0,0.26873212]
[1763030658373,0.57021943,102990.0,102980.0,0.26973212]
[1763030658748,0.57021943,102990.0,102980.0,0.07552]
[1763030658966,0.71989492,102990.0,102980.0,0.07552]
[1763030659163,0.71989492,102990.0,102980.0,0.09052]
[1763030659689,0.71989492,102990.0,102980.0,0.09152]
[1763030660644,0.96239492,102990.0,102980.0,0.07152]
[1763030660802,0.96239492,102990.0,102980.0,0.09422]
[1763030661009,0.96239492,102990.0,102980.0,0.07152]
[1763030661265,0.96239492,102990.0,102980.0,0.09152]
[1763030661439,0.96239492,102990.0,102980.0,0.07152]
[1763030661647,0.96239492,102990.0,102980.0,0.30843246]
[1763030661864,0.96239492,102990.0,102980.0,0.11422]
[1763030662072,0.96239492,102990.0,102980.0,0.30843246]
[1763030663043,0.96239492,102990.0,102980.0,0.11422]
[1763030663646,0.96239492,102990.0,102980.0,0.09422]
[1763030663831,0.96239492,102990.0,102980.0,0.11422]
[1763030664406,0.96239492,102990.0,102980.0,0.09422]
[1763030664610,0.96239492,102990.0,102980.0,0.28843246]
[1763030664791,0.96239492,102990.0,102980.0,0.30843246]
[1763030665327,0.96239492,102990.0,102980.0,0.11422]
[1763030666057,0.96239492,102990.0,102980.0,0.05652]
[1763030666295,0.96239492,102990.0,102980.0,0.07152]
[1763030666466,0.96239492,102990.0,102980.0,0.28843246]
[1763030666708,0.96239492,102990.0,102980.0,0.30843246]
[1763030667080,0.96239492,102990.0,102980.0,0.09422]
[1763030667489,0.96239492,102990.0,102980.0,0.07214]
[1763030667703,0.96239492,102990.0,102980.0,0.11422]
[1763030668050,0.96239492,102990.0,102980.0,0.28843246]
[1763030668248,0.96239492,102990.0,102980.0,0.30843246]
[1763030668575,0.5140457,102990.0,102980.0,0.30843246]
[1763030668777,0.96239492,102990.0,102980.0,0.30843246]
[1763030670294,0.96239492,102990.0,102980.0,0.09422]
[1763030671111,0.96239492,102990.0,102980.0,0.11422]
[1763030671314,0.96239492,102990.0,102980.0,0.30843246]
[1763030671841,0.96239492,102990.0,102980.0,0.11422]
[1763030672055,0.96239492,102990.0,102980.0,0.30843246]
[1763030672832,0.96239492,102990.0,102980.0,0.11422]
[1763030673552,0.96239492,102990.0,102980.0,0.07152]
[1763030673770,1.22422012,102990.0,102980.0,0.002]
[1763030674010,1.85909336,102990.0,102980.0,0.04408]
[1763030674221,1.18656953,102990.0,102980.0,0.04408]
[1763030674412,1.18656953,102990.0,102980.0,0.06408]
[1763030674587,1.18656953,102990.0,102980.0,0.04408]
[1763030676423,1.18656953,102990.0,102980.0,0.04208]
[1763030676831,1.18656953,102990.0,102980.0,0.06208]
[1763030678195,0.94406953,102990.0,102980.0,0.06208]
[1763030679665,0.94406953,102990.0,102980.0,0.04208]
[1763030679840,0.71989492,102990.0,102980.0,0.26404246]
[1763030680047,0.71989492,102990.0,102980.0,0.09476]
[1763030680280,0.2715457,102990.0,102980.0,0.28897246]
[1763030680515,0.71989492,102990.0,102980.0,0.30897246]
[1763030681528,0.71989492,102990.0,102980.0,0.09476]
[1763030681787,0.71989492,102990.0,102980.0,0.08983]
[1763030681982,0.71989492,102990.0,102980.0,0.0545]
[1763030682235,0.96227781,102990.0,102980.0,0.04208]
[1763030683954,0.94406953,102990.0,102980.0,0.04208]
[1763030684559,0.94406953,102990.0,102980.0,0.23629246]
[1763030684736,0.94406953,102990.0,102980.0,0.25629246]
[1763030685128,0.94406953,102990.0,102980.0,0.06208]
[1763030685488,0.94406953,102990.0,102980.0,0.25629246]
[1763030685707,0.94406953,102990.0,102980.0,0.26871246]
[1763030686212,0.94406953,102990.0,102980.0,0.0745]
[1763030686484,0.94406953,102990.0,102980.0,0.24871246]
[1763030686887,0.94406953,102990.0,102980.0,0.26871246]
[1763030688399,0.94406953,102990.0,102980.0,0.24871246]
[1763030688617,0.49572031,102990.0,102980.0,0.30897246]
[1763030688830,0.07735209,102990.0,102980.0,0.28897246]
[1763030689069,0.07735209,102990.0,102980.0,0.30897246]
[1763030689298,0.3015267,102990.0,102980.0,0.30897246]
[1763030689626,0.00185183,103000.0,102990.0,0.19419361]
[1763030689820,0.22602644,103000.0,102990.0,0.26687361]
[1763030690064,0.25517091,103000.0,102990.0,0.26687361]
[1763030690238,0.22602644,103000.0,102990.0,0.26687361]
[1763030691025,0.00185183,103000.0,102990.0,0.26787361]
[1763030691225,0.22602644,103000.0,102990.0,0.26787361]
[1763030692035,0.00185183,103000.0,102990.0,0.49204822]
[1763030692240,0.00185183,103000.0,102990.0,0.49304822]
[1763030698895,0.00185183,103000.0,102990.0,0.24887361]
[1763030699018,0.22602644,103000.0,102990.0,0.26887361]
[1763030699260,0.69258019,103000.0,102990.0,0.27069361]
[1763030699454,0.69258019,103000.0,102990.0,0.28602361]
[1763030699674,0.69258019,103000.0,102990.0,0.0765]
[1763030699882,0.69258019,103000.0,102990.0,0.27069361]
[1763030700242,0.9167548,103000.0,102990.0,0.04408]
[1763030700653,0.94589899,103000.0,102990.0,0.06408]
[1763030701253,0.27337516,103000.0,102990.0,0.06408]
[1763030701459,0.03099602,103000.0,102990.0,0.29038361]
[1763030701676,0.72172438,103000.0,102990.0,0.11619]
[1763030701901,0.72172438,103000.0,102990.0,0.31038361]
[1763030702481,0.72172438,103000.0,102990.0,0.11619]
[1763030703120,0.72172438,103000.0,102990.0,0.31038361]
[1763030704102,0.72172438,103000.0,102990.0,0.11619]
[1763030704302,0.9671267,103000.0,102990.0,0.002]
[1763030704531,1.96265053,103000.0,102990.0,0.002]
[1763030704667,1.98080849,103000.0,102990.0,0.04408]
[1763030704871,1.98080849,103000.0,102990.0,0.002]
[1763030705101,1.98080849,103000.0,102990.0,0.04408]
[1763030705318,1.98080849,103000.0,102990.0,0.002]
[1763030705501,1.98080849,103000.0,102990.0,0.001]
[1763030705701,1.98180849,103000.0,102990.0,0.001]
[1763030705902,0.19419361,102990.0,102980.0,0.04208]
[1763030706147,0.86671744,102990.0,102980.0,0.25629246]
[1763030706280,0.64254283,102990.0,102980.0,0.25629246]
[1763030706692,0.86671744,102990.0,102980.0,0.23629246]
[1763030706877,0.64254283,102990.0,102980.0,0.26793246]
[1763030707081,0.64254283,102990.0,102980.0,0.08912]
[1763030707638,0.86671744,102990.0,102980.0,0.08912]
[1763030709232,0.19421246,102980.0,102970.0,0.03244]
[1763030709426,0.69076607,102980.0,102970.0,0.07452]
[1763030709651,0.69076607,102980.0,102970.0,0.02784]
[1763030709969,0.69076607,102980.0,102970.0,0.07452]
[1763030710111,0.71991757,102980.0,102970.0,0.07452]
[1763030710312,0.71991757,102980.0,102970.0,0.05452]
[1763030710511,0.19423132,102970.0,102960.0,0.03644]
[1763030710725,0.41840593,102970.0,102960.0,0.29277019]
[1763030710958,0.64258054,102970.0,102960.0,0.30817019]
[1763030711577,0.64258054,102970.0,102960.0,0.01403]
[1763030711815,0.64258054,102970.0,102960.0,0.05611]
[1763030712017,0.64258054,102970.0,102960.0,0.25036019]
[1763030712225,0.64258054,102970.0,102960.0,0.31117019]
[1763030712418,0.67173504,102970.0,102960.0,0.31117019]
[1763030713215,0.67173504,102970.0,102960.0,0.11692]
[1763030713832,0.67173504,102970.0,102960.0,0.31117019]
[1763030716512,0.47750372,102970.0,102960.0,0.29117019]
[1763030716722,0.67173504,102970.0,102960.0,0.31117019]
[1763030717515,0.47750372,102970.0,102960.0,0.31117019]
[1763030717717,0.67173504,102970.0,102960.0,0.31117019]
[1763030717928,0.0291545,102970.0,102960.0,0.29117019]
[1763030718131,0.93326607,102980.0,102970.0,0.21423132]
[1763030718344,0.96241844,102980.0,102970.0,0.26568132]
[1763030718973,0.31985676,102980.0,102970.0,0.24568132]
[1763030719103,0.51406922,102980.0,102970.0,0.26568132]
[1763030719319,0.51406922,102980.0,102970.0,0.26668132]
[1763030719735,0.81299022,102980.0,102970.0,0.26668132]
[1763030719932,0.81299022,102980.0,102970.0,0.07245]
[1763030720143,1.11191122,102980.0,102970.0,0.01364]
[1763030720673,1.11191122,102980.0,102970.0,0.002]
[1763030720853,1.11191122,102980.0,102970.0,0.04408]
[1763030722156,0.86941122,102980.0,102970.0,0.04408]
[1763030722410,0.86941122,102980.0,102970.0,0.002]
[1763030722615,1.19241122,102980.0,102970.0,0.002]
[1763030722740,1.19241122,102980.0,102970.0,0.04408]
[1763030723128,1.2888107,102980.0,102970.0,0.04408]
[1763030724427,1.2888107,102980.0,102970.0,0.002]
[1763030725253,1.2888107,102980.0,102970.0,0.001]
[1763030725638,1.2898107,102980.0,102970.0,0.001]
[1763030726494,0.19423132,102970.0,102960.0,0.05411]
[1763030726700,0.49315232,102970.0,102960.0,0.05411]
[1763030727132,0.52230798,102970.0,102960.0,0.07411]
[1763030727322,0.52230798,102970.0,102960.0,0.05411]
[1763030727521,0.52230798,102970.0,102960.0,0.07411]
[1763030727747,0.49315232,102970.0,102960.0,0.05411]
[1763030728078,0.73565232,102970.0,102960.0,0.07411]
[1763030728487,0.73565232,102970.0,102960.0,0.05411]
[1763030729607,0.73565232,102970.0,102960.0,0.24836019]
[1763030729861,0.7912214,102970.0,102960.0,0.07411]
[1763030730335,0.7912214,102970.0,102960.0,0.26836019]
[1763030730574,0.73565232,102970.0,102960.0,0.30860019]
[1763030735777,0.43673132,102970.0,102960.0,0.05411]
[1763030735982,0.73565232,102970.0,102960.0,0.09435]
[1763030736195,0.73565232,102970.0,102960.0,0.11435]
[1763030737314,0.73565232,102970.0,102960.0,0.05227]
[1763030737491,0.43673132,102970.0,102960.0,0.09435]
[1763030737627,0.73565232,102970.0,102960.0,0.09435]
[1763030737831,0.73565232,102970.0,102960.0,0.04208]
[1763030738096,0.73565232,102970.0,102960.0,0.05409]
[1763030738294,0.73565232,102970.0,102960.0,0.07409]
[1763030738495,0.8320518,102970.0,102960.0,0.07409]
[1763030738875,0.8320518,102970.0,102960.0,0.05409]
[1763030739065,0.8320518,102970.0,102960.0,0.07409]
[1763030739268,0.8320518,102970.0,102960.0,0.05409]
[1763030739859,0.8320518,102970.0,102960.0,0.07409]
[1763030740059,0.8320518,102970.0,102960.0,0.08939]
[1763030740359,0.8320518,102970.0,102960.0,0.09433]
[1763030740606,0.8320518,102970.0,102960.0,0.30858019]
[1763030740607,0.73565232,102970.0,102960.0,0.30858019]
[1763030742136,0.73565232,102970.0,102960.0,0.09433]
[1763030742733,0.73565232,102970.0,102960.0,0.11433]
[1763030743393,0.73565232,102970.0,102960.0,0.09433]
[1763030743685,0.73565232,102970.0,102960.0,0.11433]
[1763030745114,0.73565232,102970.0,102960.0,0.09433]
[1763030745416,0.73565232,102970.0,102960.0,0.11433]
[1763030747425,0.73565232,102970.0,102960.0,0.09433]
[1763030747605,0.73565232,102970.0,102960.0,0.11433]
[1763030748104,0.73565232,102970.0,102960.0,0.09433]
[1763030748305,0.73565232,102970.0,102960.0,0.11433]
[1763030748713,0.8320518,102970.0,102960.0,0.05409]
[1763030748927,0.85025487,102970.0,102960.0,0.06939]
[1763030749578,0.87940994,102970.0,102960.0,0.06939]
[1763030749997,0.78301046,102970.0,102960.0,0.05409]
[1763030751378,0.78301046,102970.0,102960.0,0.07409]
[1763030751565,0.78301046,102970.0,102960.0,0.05409]
[1763030751996,0.78301046,102970.0,102960.0,0.04208]
[1763030752957,0.78301046,102970.0,102960.0,0.05409]
[1763030753163,0.78301046,102970.0,102960.0,0.07409]
[1763030753349,0.48408946,102970.0,102960.0,0.09433]
[1763030753588,0.78301668,102970.0,102960.0,0.06939]
[1763030753744,0.78301668,102970.0,102960.0,0.08939]
[1763030753947,0.78301668,102970.0,102960.0,0.06939]
[1763030756611,0.78301668,102970.0,102960.0,0.28858019]
[1763030756812,0.78301668,102970.0,102960.0,0.11433]
[1763030756813,0.76480739,102970.0,102960.0,0.11433]
[1763030757424,0.76480739,102970.0,102960.0,0.30858019]
[1763030757628,0.73565232,102970.0,102960.0,0.30858019]
[1763030758436,0.73565232,102970.0,102960.0,0.11433]
[1763030759005,0.73565232,102970.0,102960.0,0.09433]
[1763030759381,0.73565232,102970.0,102960.0,0.28858019]
[1763030759585,0.73565232,102970.0,102960.0,0.30858019]
[1763030760696,0.73565232,102970.0,102960.0,0.08939]
[1763030760894,0.73565232,102970.0,102960.0,0.28825019]
[1763030761105,0.73565232,102970.0,102960.0,0.30825019]
[1763030762387,0.73565232,102970.0,102960.0,0.28825019]
[1763030762795,0.73565232,102970.0,102960.0,0.30825019]
[1763030762940,0.73565232,102970.0,102960.0,0.28825019]
[1763030763137,0.2425,102970.0,102960.0,0.28825019]
[1763030763339,0.2425,102970.0,102960.0,0.30825019]
[1763030763880,0.2425,102970.0,102960.0,0.60717119]
[1763030764283,0.2425,102970.0,102960.0,0.60817119]
[1763030764469,0.2425,102970.0,102960.0,0.60917119]
[1763030765305,0.2425,102970.0,102960.0,0.31025019]
[1763030766431,0.43673132,102970.0,102960.0,0.29025019]
[1763030766642,0.2425,102970.0,102960.0,0.31025019]
[1763030767232,0.2425,102970.0,102960.0,0.29025019]
[1763030767441,0.2425,102970.0,102960.0,0.31025019]
[1763030770488,0.2425,102970.0,102960.0,0.60917119]
[1763030770691,0.73561497,102990.0,102980.0,0.19421246]
[1763030770892,0.541421,102990.0,102980.0,0.28415246]
[1763030771096,0.541421,102990.0,102980.0,0.30677246]
[1763030771509,0.73561461,102990.0,102980.0,0.30677246]
[1763030771717,0.43669361,102990.0,102980.0,0.28677246]
[1763030771953,0.73661461,102990.0,102980.0,0.30677246]
[1763030772451,0.73761461,102990.0,102980.0,0.28677246]
[1763030772594,0.73761461,102990.0,102980.0,0.30677246]
[1763030772778,0.543421,102990.0,102980.0,0.30677246]
[1763030772983,0.73761461,102990.0,102980.0,0.30677246]
[1763030773188,0.543421,102990.0,102980.0,0.30677246]
[1763030773738,0.73761461,102990.0,102980.0,0.30677246]
[1763030778401,0.73761461,102990.0,102980.0,0.11256]
[1763030778828,0.73761461,102990.0,102980.0,0.28677246]
[1763030779101,0.73761461,102990.0,102980.0,0.05373]
[1763030779487,0.73761461,102990.0,102980.0,0.06994]
[1763030779681,0.73761461,102990.0,102980.0,0.11256]
[1763030779929,0.73761461,102990.0,102980.0,0.28677246]
[1763030780153,0.73761461,102990.0,102980.0,0.30677246]
[1763030780932,0.88703251,102990.0,102980.0,0.30677246]
[1763030781148,0.88703251,102990.0,102980.0,0.11256]
[1763030782726,0.88703251,102990.0,102980.0,0.09256]
[1763030782930,1.11120196,102990.0,102980.0,0.05048]
[1763030783265,1.11120196,102990.0,102980.0,0.09256]
[1763030784231,1.11120196,102990.0,102980.0,0.11256]
[1763030785400,1.11120196,102990.0,102980.0,0.28677246]
[1763030785558,0.43869361,102990.0,102980.0,0.28677246]
[1763030785886,0.88703251,102990.0,102980.0,0.30677246]
[1763030786090,0.88703251,102990.0,102980.0,0.28677246]
[1763030786437,1.11120196,102990.0,102980.0,0.30677246]
[1763030786612,1.11120196,102990.0,102980.0,0.09256]
[1763030787026,1.11120196,102990.0,102980.0,0.11256]
[1763030788400,1.14035026,102990.0,102980.0,0.11256]
[1763030788758,1.14035026,102990.0,102980.0,0.30677246]
[1763030788954,1.14035026,102990.0,102980.0,0.11256]
[1763030790422,1.14035026,102990.0,102980.0,0.09256]
[1763030791714,1.14035026,102990.0,102980.0,0.05373]
[1763030791882,1.14035026,102990.0,102980.0,0.07373]
[1763030793257,1.14035026,102990.0,102980.0,0.03165]
[1763030793405,1.14035026,102990.0,102980.0,0.05373]
[1763030793805,1.14035026,102990.0,102980.0,0.0692]
[1763030794201,1.14035026,102990.0,102980.0,0.11194]
[1763030794649,1.14035026,102990.0,102980.0,0.09194]
[1763030794907,1.15855307,102990.0,102980.0,0.01165]
[1763030795122,0.19423132,102970.0,102960.0,0.03475]
[1763030795330,0.19423132,102970.0,102960.0,0.05409]
[1763030795331,0.86673967,102970.0,102960.0,0.05409]
[1763030795725,0.8958936,102970.0,102960.0,0.06956]
[1763030796094,0.8958936,102970.0,102960.0,0.0923]
[1763030796289,0.8958936,102970.0,102960.0,0.0933]
[1763030796713,0.67172415,102970.0,102960.0,0.28755019]
[1763030796921,0.67172415,102970.0,102960.0,0.30755019]